bitfinex/quotes_BTCUSD_20260103
["timestamp","ask_amount","ask_price","bid_price","bid_amount"]
[1767443380259,0.01116,89773.0,89769.0,0.0109287]
[1767443380849,0.01116,89773.0,89768.0,0.01113982]
[1767443380850,0.0222992,89773.0,89768.0,0.01113982]
[1767443381066,0.01116,89773.0,89769.0,0.0111397]
[1767443381269,0.01116,89773.0,89768.0,0.01113982]
[1767443381479,0.00954866,89773.0,89769.0,0.0111397]
[1767443382056,0.02068786,89773.0,89768.0,0.01113982]
[1767443382483,0.00954866,89773.0,89769.0,0.0111397]
[1767443384164,0.00954866,89773.0,89770.0,0.01113957]
[1767443384389,0.00954866,89773.0,89769.0,0.0111397]
[1767443385319,0.00926228,89773.0,89769.0,0.0111397]
[1767443385519,0.00897589,89773.0,89769.0,0.0111397]
[1767443386161,0.00897589,89773.0,89770.0,0.01113957]
[1767443386540,0.00868947,89773.0,89770.0,0.01113957]
[1767443387242,0.00868947,89773.0,89769.0,0.0111397]
[1767443387481,0.00868947,89773.0,89770.0,0.01113957]
[1767443387872,0.00840303,89773.0,89769.0,0.0111397]
[1767443388074,0.00711758,89773.0,89770.0,0.01113957]
[1767443389232,0.00711758,89773.0,89770.0,0.06683693]
[1767443390693,0.00683116,89773.0,89770.0,0.06683693]
[1767443396104,0.00683116,89773.0,89770.0,0.01113957]
[1767443400389,0.000999,89770.0,89768.0,0.01113982]
[1767443400593,0.000999,89770.0,89768.0,0.06683854]
[1767443400799,0.05271634,89773.0,89769.0,0.0111397]
[1767443401004,0.04588518,89772.0,89769.0,0.0111397]
[1767443401623,0.04588518,89772.0,89768.0,0.01113982]
[1767443401852,0.04588518,89772.0,89769.0,0.0111397]
[1767443402078,0.04588518,89772.0,89766.0,0.01114007]
[1767443402293,0.04588518,89771.0,89767.0,0.01113995]
[1767443402491,0.01113933,89772.0,89767.0,0.01113995]
[1767443403667,0.01113945,89771.0,89766.0,0.01114007]
[1767443404225,0.01113933,89772.0,89767.0,0.01113995]
[1767443404548,0.01113945,89771.0,89766.0,0.01114007]
[1767443405039,0.01113945,89771.0,89767.0,0.01113995]
[1767443405716,0.00845313,89770.0,89766.0,0.01114007]
[1767443405917,0.00756591,89771.0,89767.0,0.01113995]
[1767443406128,0.01113933,89772.0,89771.0,0.00083601]
[1767443406285,0.05702451,89772.0,89767.0,0.01113995]
[1767443406492,0.06683569,89773.0,89754.0,0.01116]
[1767443406493,0.04588518,89765.0,89754.0,0.01116]
[1767443406689,0.04588518,89765.0,89745.0,0.04699169]
[1767443406690,0.01114069,89761.0,89753.0,0.01114168]
[1767443406961,0.01114081,89760.0,89754.0,0.01114156]
[1767443407153,0.01114711,89761.0,89755.0,0.01114144]
[1767443407411,0.01114711,89761.0,89756.0,0.01114131]
[1767443407613,0.01114081,89760.0,89755.0,0.01114144]
[1767443407733,0.01114711,89761.0,89755.0,0.01114144]
[1767443408137,0.01114711,89761.0,89756.0,0.01114131]
[1767443408734,0.01114081,89760.0,89755.0,0.01114144]
[1767443409006,0.00916028,89760.0,89755.0,0.01114144]
[1767443409991,0.01114711,89761.0,89756.0,0.01114131]
[1767443411966,8.005e-05,89761.0,89757.0,0.01114119]
[1767443412386,0.01122074,89761.0,89756.0,0.01114131]
[1767443412559,8.005e-05,89761.0,89757.0,0.01114119]
[1767443413889,0.01122074,89761.0,89756.0,0.01114131]
[1767443414096,0.01114081,89760.0,89755.0,0.05813313]
[1767443414711,8.005e-05,89761.0,89756.0,0.01114131]
[1767443415355,8.005e-05,89761.0,89757.0,0.01114119]
[1767443415586,0.0089183,89762.0,89757.0,0.01114119]
[1767443415823,0.01114069,89761.0,89756.0,0.01114131]
[1767443416061,0.0089183,89762.0,89757.0,0.01114119]
[1767443416288,0.01114081,89760.0,89755.0,0.05813313]
[1767443418677,0.01114094,89759.0,89755.0,0.04699169]
[1767443420218,0.01114144,89755.0,89750.0,0.04699169]
[1767443420426,0.01114144,89755.0,89751.0,0.01114193]
[1767443420625,0.01114131,89756.0,89751.0,0.01114193]
[1767443420805,0.01114131,89756.0,89751.0,0.05813362]
[1767443421200,0.01114131,89756.0,89752.0,0.01114181]
[1767443421428,0.01114119,89757.0,89753.0,0.01114168]
[1767443421717,0.01114119,89757.0,89753.0,0.05813337]
[1767443421884,0.06684512,89760.0,89753.0,0.05813337]
[1767443422901,0.01114106,89758.0,89753.0,0.05813337]
[1767443423652,0.01107199,89758.0,89754.0,0.01114156]
[1767443424532,0.01107199,89758.0,89753.0,0.05813337]
[1767443424984,0.01114119,89757.0,89752.0,0.01114181]
[1767443426219,0.01107199,89758.0,89753.0,0.01114168]
[1767443426778,0.01114119,89757.0,89752.0,0.01114181]
[1767443426982,0.01114131,89756.0,89751.0,0.01114193]
[1767443427235,0.01114131,89756.0,89752.0,0.01114181]
[1767443427452,0.01114144,89755.0,89750.0,0.01150177]
[1767443427913,0.01114131,89756.0,89751.0,0.01114193]
[1767443428105,0.01114156,89754.0,89750.0,0.00035971]
[1767443428282,0.01114144,89755.0,89750.0,0.01150177]
[1767443428866,0.01114168,89753.0,89750.0,0.00035971]
[1767443430294,0.06685057,89753.0,89750.0,0.00035971]
[1767443430498,0.06685057,89753.0,89741.0,0.02230343]
[1767443430499,0.01114255,89746.0,89741.0,0.01116026]
[1767443430713,0.01114218,89749.0,89746.0,0.00063956]
[1767443430922,0.01121421,89749.0,89746.0,0.00063956]
[1767443431120,0.01121421,89749.0,89742.0,0.01114305]
[1767443431121,0.01114243,89747.0,89742.0,0.01114305]
[1767443431540,0.01114255,89746.0,89741.0,0.01114343]
[1767443431738,0.01114243,89747.0,89741.0,0.01114343]
[1767443431975,0.01114255,89746.0,89741.0,0.01114343]
[1767443432186,0.01114268,89745.0,89741.0,2.6e-07]
[1767443432392,0.01114255,89746.0,89741.0,2.6e-07]
[1767443432565,0.01114243,89747.0,89741.0,0.01114343]
[1767443433770,0.01114243,89747.0,89742.0,0.01114305]
[1767443434138,0.0111423,89748.0,89743.0,0.01114293]
[1767443434349,0.01114243,89747.0,89741.0,0.01114343]
[1767443435340,0.06685543,89746.0,89741.0,2.6e-07]
[1767443435543,0.01114255,89746.0,89741.0,2.6e-07]
[1767443435724,0.01114255,89746.0,89741.0,0.01114343]
[1767443435901,1e-08,89746.0,89741.0,2.6e-07]
[1767443436429,0.01114256,89746.0,89741.0,0.01114343]
[1767443437239,0.06685718,89744.0,89741.0,2.6e-07]
[1767443439897,0.0111428,89744.0,89741.0,2.6e-07]
[1767443440784,0.01114268,89745.0,89741.0,2.6e-07]
[1767443440995,0.0111428,89744.0,89741.0,2.6e-07]
[1767443442917,0.05571465,89743.0,89741.0,2.6e-07]
[1767443443320,0.0223028,89744.0,89741.0,2.6e-07]
[1767443444625,0.07801724,89744.0,89741.0,2.6e-07]
[1767443444834,0.03973745,89743.0,89740.0,2.6e-07]
[1767443445663,0.01114293,89743.0,89740.0,2.6e-07]
[1767443448124,0.01050293,89743.0,89740.0,2.6e-07]
[1767443449681,0.06621796,89743.0,89740.0,2.6e-07]
[1767443450202,0.05571566,89742.0,89740.0,2.6e-07]
[1767443452393,0.08415958,89742.0,89740.0,2.6e-07]
[1767443452540,0.02844392,89741.0,89740.0,2.6e-07]
[1767443452803,0.05571566,89742.0,89740.0,2.6e-07]
[1767443455312,0.02844392,89741.0,89740.0,2.6e-07]
[1767443456147,0.05571566,89742.0,89740.0,2.6e-07]
[1767443456347,0.08415958,89742.0,89740.0,2.6e-07]
[1767443458847,0.02844392,89741.0,89740.0,2.6e-07]
[1767443460226,0.05571566,89742.0,89740.0,2.6e-07]
[1767443460654,0.01114355,89738.0,89730.0,0.04707487]
[1767443460813,0.05571948,89736.0,89730.0,0.04707487]
[1767443461008,0.01114392,89735.0,89730.0,0.04707487]
[1767443461214,0.01114392,89735.0,89730.0,0.05821941]
[1767443461439,0.01114379,89736.0,89730.0,0.05821941]
[1767443462124,0.01114379,89736.0,89731.0,0.01114442]
[1767443462321,0.02230379,89736.0,89731.0,0.01114442]
[1767443462528,0.01116,89736.0,89732.0,0.04707487]
[1767443462746,0.02230342,89739.0,89733.0,0.01114417]
[1767443463341,0.00065707,89739.0,89733.0,0.01114417]
[1767443463544,0.00065707,89739.0,89734.0,0.01114404]
[1767443464343,0.00065707,89739.0,89735.0,0.01114392]
[1767443464550,0.00065707,89739.0,89734.0,0.01114404]
[1767443464720,0.01114268,89745.0,89739.0,0.01114342]
[1767443464896,0.01114268,89745.0,89737.0,0.05571779]
[1767443464897,0.0223028,89744.0,89738.0,0.01114355]
[1767443465102,1e-08,89746.0,89739.0,0.01114342]
[1767443465423,1e-08,89746.0,89743.0,0.01114293]
[1767443465579,1e-08,89746.0,89743.0,0.06685696]
[1767443465782,1e-08,89746.0,89743.0,0.01114293]
[1767443470445,0.000999,89743.0,89742.0,0.01114305]
[1767443470889,1e-08,89746.0,89743.0,0.01114293]
[1767443471276,1e-08,89746.0,89742.0,0.01114305]
[1767443471477,1e-08,89746.0,89743.0,0.01114293]
[1767443471943,1e-08,89746.0,89742.0,0.01114305]
[1767443472359,1e-08,89746.0,89743.0,0.01114293]
[1767443472995,0.000999,89743.0,89742.0,0.01114305]
[1767443473262,0.00095362,89743.0,89742.0,0.01114305]
[1767443473482,1e-08,89746.0,89742.0,0.01114305]
[1767443473706,1e-08,89746.0,89743.0,0.01114293]
[1767443474144,1e-08,89746.0,89742.0,0.01114305]
[1767443474370,1e-08,89746.0,89743.0,0.01114293]
[1767443475918,1e-08,89746.0,89742.0,0.01114305]
[1767443476327,1e-08,89746.0,89743.0,0.01114293]
[1767443480966,1e-08,89746.0,89743.0,0.01109922]
[1767443481325,0.04665289,89746.0,89743.0,0.01109922]
[1767443481530,0.04665289,89746.0,89742.0,0.01114305]
[1767443482053,0.04665289,89746.0,89743.0,0.01114293]
[1767443483365,1e-08,89746.0,89743.0,0.01114293]
[1767443484520,1e-08,89746.0,89742.0,0.01114305]
[1767443485783,1e-08,89746.0,89743.0,0.01114293]
[1767443486191,1e-08,89746.0,89742.0,0.01114305]
[1767443486378,1e-08,89746.0,89743.0,0.01109922]
[1767443487546,0.01114206,89750.0,89743.0,0.01109922]
[1767443487547,0.01114193,89751.0,89744.0,0.0111428]
[1767443487753,0.07800904,89755.0,89746.0,0.01114255]
[1767443488170,0.04665288,89754.0,89746.0,0.01114255]
[1767443488369,0.04665288,89754.0,89747.0,0.01114243]
[1767443488639,0.05779469,89752.0,89747.0,0.01109873]
[1767443488813,0.05779481,89751.0,89745.0,0.01114268]
[1767443489042,0.000909,89747.0,89745.0,0.01114268]
[1767443489327,0.04665288,89751.0,89746.0,0.01114255]
[1767443490292,0.01114218,89749.0,89744.0,0.01122285]
[1767443490688,0.0111423,89748.0,89744.0,8.005e-05]
[1767443490863,0.00082895,89744.0,89742.0,0.01114305]
[1767443491278,0.0111423,89748.0,89742.0,0.01114305]
[1767443491728,0.01114243,89747.0,89742.0,0.01114305]
[1767443491962,0.01114243,89747.0,89741.0,0.01163144]
[1767443492169,0.04960464,89746.0,89741.0,0.01163144]
[1767443492376,0.04960464,89746.0,89742.0,0.01114305]
[1767443492883,0.04960464,89746.0,89741.0,0.00663144]
[1767443493101,0.06074719,89746.0,89740.0,0.0111433]
[1767443493280,0.04960464,89744.0,89740.0,0.0111433]
[1767443493527,0.0119723,89740.0,89735.0,0.02230392]
[1767443493976,0.06074806,89739.0,89735.0,0.01116]
[1767443494178,0.06074806,89739.0,89730.0,0.06686683]
[1767443494179,0.04960464,89736.0,89732.0,0.01114429]
[1767443494386,0.00498315,89736.0,89732.0,0.01114429]
[1767443494590,0.0111433,89740.0,89736.0,0.00017]
[1767443494795,0.04960464,89740.0,89736.0,0.00017]
[1767443494996,0.04960464,89740.0,89737.0,0.01114367]
[1767443495569,0.04876863,89740.0,89737.0,0.01114367]
[1767443496209,0.04859863,89740.0,89737.0,0.01114367]
[1767443496896,0.04859863,89740.0,89736.0,0.01114379]
[1767443497310,0.01114305,89742.0,89737.0,0.01114367]
[1767443497542,0.01114293,89743.0,89737.0,0.01114367]
[1767443497750,0.01114305,89742.0,89737.0,0.01114367]
[1767443499617,0.01114305,89742.0,89736.0,0.01114379]
[1767443499836,0.01114305,89742.0,89737.0,0.01114367]
[1767443500124,0.01114293,89743.0,89738.0,0.01114355]
[1767443500339,0.01114293,89743.0,89738.0,0.01109818]
[1767443500890,0.06074757,89743.0,89738.0,0.01109818]
[1767443501087,0.01114293,89743.0,89738.0,0.01109818]
[1767443501292,0.02230268,89745.0,89738.0,0.01109818]
[1767443501498,0.01163068,89747.0,89744.0,0.0111428]
[1767443501499,0.01164825,89747.0,89744.0,0.0111428]
[1767443501700,0.01164825,89747.0,89746.0,0.05571278]
[1767443501906,0.01116,89748.0,89747.0,0.01114243]
[1767443502147,0.00684367,89748.0,89747.0,0.01114243]
[1767443503758,0.01114131,89756.0,89747.0,0.01114243]
[1767443503759,0.01114131,89756.0,89749.0,0.05571053]
[1767443504026,0.01114144,89755.0,89750.0,0.01114206]
[1767443504226,0.01114144,89755.0,89750.0,0.01014306]
[1767443504417,0.01114144,89755.0,89749.0,0.01114218]
[1767443504418,0.01114156,89754.0,89749.0,0.01114218]
[1767443504618,0.01114168,89753.0,89748.0,0.0111423]
[1767443505197,0.01114156,89754.0,89749.0,0.01114218]
[1767443505964,0.0607462,89754.0,89749.0,0.01114218]
[1767443506168,0.04960464,89754.0,89750.0,0.01114206]
[1767443506373,0.01114144,89755.0,89748.0,0.0111423]
[1767443506770,0.01114156,89754.0,89749.0,0.01114218]
[1767443507375,0.01114168,89753.0,89748.0,0.0111423]
[1767443507583,0.01114156,89754.0,89749.0,0.01114218]
[1767443507782,0.01114144,89755.0,89749.0,0.01114218]
[1767443507985,0.01114144,89755.0,89750.0,0.01114206]
[1767443508754,0.01114156,89754.0,89749.0,0.01114218]
[1767443508900,0.01114168,89753.0,89747.0,0.01114243]
[1767443509103,0.01114181,89752.0,89747.0,0.01114243]
[1767443509304,0.01114168,89753.0,89747.0,0.01114243]
[1767443509640,0.01114168,89753.0,89748.0,0.0111423]
[1767443510127,0.01114156,89754.0,89748.0,0.0111423]
[1767443510663,0.01114156,89754.0,89749.0,0.01114218]
[1767443510832,0.01114168,89753.0,89748.0,0.0111423]
[1767443512084,0.01114156,89754.0,89749.0,0.01114218]
[1767443513348,0.01114168,89753.0,89748.0,0.0111423]
[1767443513546,0.01114156,89754.0,89749.0,0.01114218]
[1767443515150,0.01114144,89755.0,89750.0,0.01114206]
[1767443515354,0.01114156,89754.0,89749.0,0.01114218]
[1767443517169,0.01114168,89753.0,89748.0,0.0111423]
[1767443517346,0.01114156,89754.0,89749.0,0.01114218]
[1767443518115,0.32050795,89861.0,89728.0,0.41453017]
[1767443518116,0.0668439,89762.0,89755.0,0.04708514]
[1767443518334,0.01114081,89760.0,89753.0,0.06685008]
[1767443518541,0.01114094,89759.0,89753.0,0.01114168]
[1767443518844,0.01114119,89757.0,89752.0,0.01114181]
[1767443519068,0.01114106,89758.0,89753.0,0.01114168]
[1767443519267,0.01114119,89757.0,89752.0,0.01114181]
[1767443519615,0.01114193,89751.0,89746.0,0.01114255]
[1767443519762,0.01114193,89751.0,89745.0,0.01114268]
[1767443519963,0.01114144,89755.0,89746.0,0.06685525]
[1767443520198,0.01114081,89760.0,89751.0,0.000999]
[1767443520199,0.01114106,89758.0,89751.0,0.000999]
[1767443520385,0.01116,89757.0,89754.0,0.01114156]
[1767443520586,0.01116,89757.0,89754.0,0.06684935]
[1767443521182,0.01116,89757.0,89754.0,0.01114156]
[1767443521391,0.01116,89757.0,89753.0,0.01114168]
[1767443521785,0.01116,89757.0,89754.0,0.01114156]
[1767443522022,0.01116,89757.0,89753.0,0.01114168]
[1767443522312,0.01114156,89754.0,89749.0,0.01114218]
[1767443523200,0.01116,89757.0,89754.0,0.000999]
[1767443523608,0.01116,89757.0,89753.0,0.01114168]
[1767443524020,0.02230119,89757.0,89750.0,0.01114206]
[1767443524584,0.01116,89757.0,89752.0,0.01114181]
[1767443524799,0.01116,89757.0,89753.0,0.01114168]
[1767443527639,0.01114156,89754.0,89745.0,0.05844407]
[1767443527815,0.01114168,89753.0,89747.0,0.01114243]
[1767443528018,0.01114156,89754.0,89748.0,0.0111423]
[1767443528416,0.01114156,89754.0,89749.0,0.01114218]
[1767443528645,0.01114168,89753.0,89748.0,0.0111423]
[1767443529271,0.01114181,89752.0,89747.0,0.01114243]
[1767443529981,0.01114156,89754.0,89749.0,0.01114218]
[1767443530180,0.01114144,89755.0,89750.0,0.01114206]
[1767443530360,0.01114144,89755.0,89754.0,0.000999]
[1767443530844,0.01114144,89755.0,89751.0,0.01114193]
[1767443531392,0.01114131,89756.0,89751.0,0.01114193]
[1767443531776,0.01114144,89755.0,89750.0,0.01114206]
[1767443532400,0.01114131,89756.0,89750.0,0.01114206]
[1767443532607,0.01114131,89756.0,89751.0,0.01114193]
[1767443532837,0.01114144,89755.0,89750.0,0.01114206]
[1767443533235,0.01114131,89756.0,89751.0,0.01114193]
[1767443533463,0.01114144,89755.0,89749.0,0.01114218]
[1767443533655,0.01114156,89754.0,89749.0,0.01114218]
[1767443534095,0.01114156,89754.0,89748.0,0.04730139]
[1767443534096,0.01114181,89752.0,89748.0,0.04730139]
[1767443534310,0.0110544,89752.0,89748.0,0.04730139]
[1767443534514,0.01114168,89753.0,89748.0,0.05844369]
[1767443534717,0.01114181,89752.0,89748.0,0.04730139]
[1767443534964,0.01114193,89751.0,89746.0,0.01114255]
[1767443535182,0.01114181,89752.0,89747.0,0.01114243]
[1767443535890,0.01114193,89751.0,89746.0,0.01114255]
[1767443536143,0.01114181,89752.0,89747.0,0.01114243]
[1767443538447,0.01114168,89753.0,89748.0,0.0111423]
[1767443539061,0.01114181,89752.0,89747.0,0.01114243]
[1767443540618,0.01114206,89750.0,89745.0,0.01114268]
[1767443540772,0.05937342,89747.0,89742.0,0.01116]
[1767443540958,0.05937342,89747.0,89741.0,0.00048827]
[1767443541154,0.05937342,89747.0,89742.0,0.01114305]
[1767443541583,0.04723199,89747.0,89743.0,0.01114293]
[1767443541786,0.05837442,89747.0,89742.0,0.01114305]
[1767443541983,0.01114255,89746.0,89742.0,0.01114305]
[1767443542184,0.05837442,89747.0,89742.0,0.01114305]
[1767443542406,0.05837442,89747.0,89741.0,0.01163144]
[1767443542612,0.01114255,89746.0,89741.0,0.01163144]
[1767443542870,0.05837442,89747.0,89742.0,0.01114305]
[1767443543001,0.01114255,89746.0,89741.0,0.01163144]
[1767443543610,0.01114255,89746.0,89739.0,0.06686015]
[1767443543611,0.01114268,89745.0,89739.0,0.01114342]
[1767443543838,0.0111428,89744.0,89739.0,0.01114342]
[1767443544039,0.01114268,89745.0,89740.0,0.0110996]
[1767443544484,0.01114268,89745.0,89740.0,0.0111433]
[1767443544893,0.01114268,89745.0,89741.0,0.01114317]
[1767443545066,0.01114268,89745.0,89740.0,0.0111433]
[1767443545488,0.0111428,89744.0,89739.0,0.01114342]
[1767443545667,0.01114268,89745.0,89740.0,0.0111433]
[1767443546090,0.0111428,89744.0,89739.0,0.01114342]
[1767443546411,0.01114268,89745.0,89740.0,0.0111433]
[1767443546622,0.01114243,89747.0,89741.0,0.01114317]
[1767443546812,0.01114243,89747.0,89742.0,0.01114305]
[1767443547198,0.01114218,89749.0,89742.0,0.01114305]
[1767443547401,0.01114218,89749.0,89741.0,0.01114317]
[1767443547402,0.06685482,89747.0,89741.0,0.01114317]
[1767443549373,0.01114255,89746.0,89741.0,0.01114317]
[1767443550845,0.01114268,89745.0,89740.0,0.0111433]
[1767443551473,0.01114255,89746.0,89741.0,0.01114317]
[1767443551897,0.01114268,89745.0,89740.0,0.0111433]
[1767443552525,0.01114293,89743.0,89738.0,0.01114355]
[1767443552726,0.0111428,89744.0,89738.0,0.06105604]
[1767443552907,0.0111428,89744.0,89739.0,0.01114342]
[1767443553515,0.01114293,89743.0,89738.0,0.06105604]
[1767443555183,0.0111428,89744.0,89739.0,0.01114342]
[1767443555622,0.01114293,89743.0,89738.0,0.06105604]
[1767443558118,0.0111428,89744.0,89739.0,0.01114342]
[1767443558950,0.0668558,89746.0,89739.0,0.01114342]
[1767443558951,0.01114255,89746.0,89739.0,0.01114342]
[1767443559176,0.01114255,89746.0,89741.0,0.01114317]
[1767443559392,0.01114255,89746.0,89740.0,0.0111433]
[1767443560047,0.01114268,89745.0,89740.0,0.0111433]
[1767443560448,0.01114255,89746.0,89741.0,0.01114317]
[1767443562051,0.01114243,89747.0,89742.0,0.01114305]
[1767443562256,0.0111423,89748.0,89742.0,0.01114305]
[1767443562532,0.01114193,89751.0,89743.0,0.01114293]
[1767443562533,0.06685204,89751.0,89743.0,0.01114293]
[1767443563212,0.01114218,89749.0,89744.0,0.0111428]
[1767443563397,0.0111423,89748.0,89743.0,0.01114293]
[1767443564237,0.01114218,89749.0,89744.0,0.0111428]
[1767443564439,0.0111423,89748.0,89743.0,0.01114293]
[1767443564647,0.01114243,89747.0,89742.0,0.01114305]
[1767443564855,0.0111423,89748.0,89742.0,0.06105554]
[1767443565067,0.01114243,89747.0,89742.0,0.06105554]
[1767443565688,0.0111423,89748.0,89743.0,0.01114293]
[1767443565908,0.01114243,89747.0,89742.0,0.06105554]
[1767443566313,0.0111423,89748.0,89743.0,0.01114293]
[1767443566821,0.01114243,89747.0,89742.0,0.06105554]
[1767443567140,0.0111423,89748.0,89743.0,0.01114293]
[1767443567708,0.01114243,89747.0,89742.0,0.06105554]
[1767443568025,0.0111423,89748.0,89743.0,0.01114293]
[1767443568347,0.01114243,89747.0,89742.0,0.06105554]
[1767443569565,0.0111423,89748.0,89743.0,0.01114293]
[1767443570444,0.01114243,89747.0,89742.0,0.06105554]
[1767443573997,0.01114243,89747.0,89742.0,0.04991249]
[1767443574836,0.01114255,89746.0,89741.0,0.01114317]
[1767443575071,0.01114255,89746.0,89742.0,0.04991249]
[1767443575219,0.01114268,89745.0,89742.0,0.04991249]
[1767443575637,0.01114255,89746.0,89742.0,0.04991249]
[1767443575991,0.01114268,89745.0,89742.0,0.04991249]
[1767443576684,0.01114255,89746.0,89742.0,0.04991249]
[1767443576824,0.01114243,89747.0,89742.0,0.04991249]
[1767443577033,0.01114243,89747.0,89742.0,0.06105554]
[1767443577239,0.01114255,89746.0,89742.0,0.04991249]
[1767443578782,0.01114243,89747.0,89742.0,0.06105554]
[1767443579309,0.01114255,89746.0,89742.0,0.04991249]
[1767443579448,0.01114243,89747.0,89742.0,0.06105554]
[1767443579655,0.01114255,89746.0,89742.0,0.04991249]
[1767443579986,0.01114268,89745.0,89742.0,0.04991249]
[1767443580167,0.000999,89742.0,89740.0,0.04546153]
[1767443580530,0.0111428,89744.0,89738.0,0.01114355]
[1767443580730,0.01114305,89742.0,89737.0,0.01114367]
[1767443580951,0.01114293,89743.0,89738.0,0.01114355]
[1767443582435,0.0111428,89744.0,89739.0,0.01114342]
[1767443582792,0.0111428,89744.0,89739.0,0.01109972]
[1767443582994,0.01114293,89743.0,89739.0,0.01114342]
[1767443583194,0.0111428,89744.0,89739.0,0.01114342]
[1767443583396,0.01114293,89743.0,89738.0,0.01114355]
[1767443583827,0.0111428,89744.0,89739.0,0.01114342]
[1767443584031,0.01114293,89743.0,89738.0,0.01114355]
[1767443584522,0.01114305,89742.0,89737.0,0.01114367]
[1767443584731,0.01114293,89743.0,89737.0,0.01114367]
[1767443585115,0.0111428,89744.0,89738.0,0.01114355]
[1767443585515,0.01114293,89743.0,89738.0,0.01114355]
[1767443585713,0.01114379,89736.0,89730.0,0.01114454]
[1767443585937,0.01114367,89737.0,89731.0,0.01114442]
[1767443586276,0.01114367,89737.0,89732.0,0.01114429]
[1767443586687,0.01114367,89737.0,89731.0,0.05660595]
[1767443586895,0.01114367,89737.0,89732.0,0.01114429]
[1767443587719,0.01114379,89736.0,89730.0,0.02230454]
[1767443587918,0.01114379,89736.0,89731.0,0.01114442]
[1767443589831,0.01114404,89734.0,89729.0,0.01114466]
[1767443591060,0.01114404,89734.0,89729.0,0.0115041]
[1767443592712,0.06686469,89734.0,89729.0,0.00035944]
[1767443592920,0.01114404,89734.0,89729.0,0.00035944]
[1767443593120,0.01114404,89734.0,89729.0,0.04582097]
[1767443593927,0.06686517,89733.0,89729.0,0.00035944]
[1767443594098,0.01114429,89732.0,89729.0,0.00035944]
[1767443594298,0.01114417,89733.0,89729.0,0.00035944]
[1767443594660,0.01114404,89734.0,89729.0,0.05696563]
[1767443597290,0.01114404,89734.0,89729.0,0.0115041]
[1767443598011,0.01114404,89734.0,89730.0,0.01114454]
[1767443598208,0.01114404,89734.0,89729.0,0.0115041]
[1767443598797,0.01114417,89733.0,89729.0,0.0115041]
[1767443599002,0.01114404,89734.0,89729.0,0.0115041]
[1767443599846,0.00063956,89729.0,89728.0,0.04546153]
[1767443600026,0.00063956,89729.0,89728.0,0.04553356]
[1767443600440,0.01114404,89734.0,89729.0,0.01114466]
[1767443602342,0.01114404,89734.0,89730.0,0.01114454]
[1767443602548,0.01114404,89734.0,89728.0,0.01121682]
[1767443602738,0.01114404,89734.0,89729.0,0.01114466]
[1767443603287,0.01114404,89734.0,89729.0,0.01100141]
[1767443603660,0.01114404,89734.0,89729.0,0.01085817]
[1767443605394,0.01114404,89734.0,89729.0,0.01114466]
[1767443605600,0.01114417,89733.0,89728.0,0.01107356]
[1767443605801,0.01114429,89732.0,89728.0,0.01114479]
[1767443606003,0.01114429,89732.0,89727.0,0.11253059]
[1767443606217,0.01114417,89733.0,89728.0,0.01114479]
[1767443606413,0.01114417,89733.0,89728.0,0.05660632]
[1767443606924,0.01114404,89734.0,89729.0,0.01114466]
[1767443607132,0.01114417,89733.0,89728.0,0.05660632]
[1767443607563,0.01114417,89733.0,89729.0,0.01114466]
[1767443607791,0.01114417,89733.0,89728.0,0.05660632]
[1767443608116,0.01114417,89733.0,89729.0,0.01114466]
[1767443608509,0.01114417,89733.0,89728.0,0.05660632]
[1767443609064,0.01114404,89734.0,89729.0,0.01114466]
[1767443610839,0.01114417,89733.0,89728.0,0.05660632]
[1767443612250,0.01114429,89732.0,89728.0,0.04546153]
[1767443612446,0.05571995,89735.0,89729.0,0.06040602]
[1767443612649,0.06686138,89738.0,89732.0,0.00031464]
[1767443612851,0.01114367,89737.0,89732.0,0.01145893]
[1767443613079,0.01114355,89738.0,89732.0,0.01114429]
[1767443613285,0.0111433,89740.0,89733.0,0.06686453]
[1767443613475,0.01114367,89737.0,89732.0,0.01114429]
[1767443614118,0.01114355,89738.0,89737.0,0.000315]
[1767443614322,0.01114342,89739.0,89737.0,0.00026965]
[1767443614780,0.01114342,89739.0,89734.0,0.01114404]
[1767443615870,0.06686102,89739.0,89732.0,0.01114429]
[1767443616374,0.01114342,89739.0,89733.0,0.01114417]
[1767443616576,0.01114342,89739.0,89734.0,0.01114404]
[1767443616761,0.01114355,89738.0,89733.0,0.01114417]
[1767443617295,0.01114355,89738.0,89734.0,0.01114404]
[1767443617572,0.01114342,89739.0,89734.0,0.01114404]
[1767443618186,0.01116,89742.0,89740.0,0.04926136]
[1767443618391,0.01114193,89751.0,89743.0,0.01114293]
[1767443618617,0.06051789,89758.0,89752.0,0.01114181]
[1767443618815,0.06051789,89758.0,89754.0,0.01109621]
[1767443618816,0.01116,89758.0,89754.0,0.01109621]
[1767443619045,0.00073,89754.0,89752.0,0.01114181]
[1767443619280,0.00073,89754.0,89751.0,0.01114193]
[1767443619684,0.01114119,89757.0,89752.0,0.01114181]
[1767443619815,0.01114131,89756.0,89752.0,0.01114181]
[1767443620021,0.01150099,89756.0,89752.0,0.01114181]
[1767443620220,0.00035968,89756.0,89752.0,0.01114181]
[1767443621312,0.01150099,89756.0,89751.0,0.01109658]
[1767443621513,0.00073,89751.0,89750.0,0.01114206]
[1767443621739,0.00073,89751.0,89749.0,0.01114218]
[1767443622156,0.01114156,89754.0,89750.0,0.01114206]
[1767443622335,0.01114144,89755.0,89750.0,0.01114206]
[1767443622672,0.01116,89758.0,89755.0,0.01114144]
[1767443622883,0.01114069,89761.0,89756.0,0.01114131]
[1767443623089,0.01114057,89762.0,89756.0,0.01114131]
[1767443623916,0.01114057,89762.0,89757.0,0.01114119]
[1767443624121,0.01119263,89762.0,89757.0,0.01114119]
[1767443624754,0.01119263,89762.0,89758.0,0.01114106]
[1767443625206,0.00093,89758.0,89755.0,0.01114144]
[1767443625514,0.01114069,89761.0,89756.0,0.01114131]
[1767443625714,0.01114069,89761.0,89756.0,0.01109597]
[1767443627161,0.01114069,89761.0,89756.0,0.01105062]
[1767443630497,0.06051752,89761.0,89757.0,0.01114119]
[1767443630706,0.00093,89757.0,89754.0,0.01114156]
[1767443631111,0.04937683,89759.0,89755.0,0.01114144]
[1767443631354,0.01114081,89760.0,89755.0,0.01114144]
[1767443631932,0.01114094,89759.0,89754.0,0.01114156]
[1767443632650,0.06051764,89760.0,89755.0,0.01114144]
[1767443632950,0.06051764,89760.0,89755.0,0.01099818]
[1767443636525,0.06051764,89760.0,89754.0,0.01114156]
[1767443637440,0.04937683,89760.0,89756.0,0.01114131]
[1767443637742,0.01114069,89761.0,89756.0,0.01114131]
[1767443639505,0.01114069,89761.0,89756.0,0.01099806]
[1767443639717,0.01114069,89761.0,89757.0,0.01114119]
[1767443640123,0.01114081,89760.0,89755.0,0.01114144]
[1767443641008,0.01114081,89760.0,89756.0,0.01114131]
[1767443641249,0.00093,89756.0,89752.0,0.01114181]
[1767443641457,0.00093,89756.0,89753.0,0.01114168]
[1767443641664,0.00093,89756.0,89751.0,0.01114193]
[1767443641665,0.05882522,89756.0,89751.0,0.01114193]
[1767443641930,0.05882522,89756.0,89746.0,0.02230255]
[1767443641931,0.01114131,89756.0,89746.0,0.02230255]
[1767443642130,0.01114181,89752.0,89746.0,0.02230255]